Cogmind - Beta 14 @@@ ROGUE MODE // 2024.11.10 @ 13:29:11 Player: MarKhan Result: Destroyed by S-10 Pest with Light Assault Rifle Performance ------------- Evolutions (0) 0 Regions Visited (2) 400 Robots Destroyed (2) 10 Value Destroyed (13) 13 Prototype IDs (0) 0 Alien Tech Used (0) 0 Bonus (0) 0 TOTAL SCORE: 423 Bonus ------- None Cogmind --------- Core Integrity 0/250 Matter 285/300 Energy 139/140 System Corruption 0% Temperature Cool (0) Movement Core (50) Location -10/Mines Parts ------- > --- POWER (1) -------- Light Deuterium Engine > --- PROPULSION (2) --- (None) > --- UTILITY (2) ------ Advanced Weight Redist. System Seismic Detector > --- WEAPON (2) ------- Small Laser > --- INVENTORY (5) ---- Signal Interpreter Terrain Scanner Improved Terrain Scanner Seismic Detector Mining Laser Peak State ------------ > --- POWER ------------ Light Deuterium Engine > --- PROPULSION ------- (None) > --- UTILITY ---------- Advanced Weight Redist. System Improved Terrain Scanner > --- WEAPON ----------- Small Laser > --- INVENTORY -------- Signal Interpreter Terrain Scanner Seismic Detector Mining Laser [Rating: 10] Favorites ----------- Power Light Deuterium Engine Engine Light Deuterium Engine Propulsion None Utility Seismic Detector Device Seismic Detector Weapon Small Laser Energy Gun Small Laser Ballistic Gun Assault Rifle Special Weapon Mining Laser Build | -11 -10 -10 ------- Run | Yrd Mat Min Slots Evolved . | . . . Power . | . . . Propulsion . | . . . Utility . | . . . Weapon . | . . . Parts Attached 10 | 4 2 4 Power 1 | . . 1 Engine 1 | . . 1 Core . | . . . Reactor . | . . . Propulsion . | . . . Treads . | . . . Leg . | . . . Wheel . | . . . Hover . | . . . Flight . | . . . Utility 5 | 2 1 2 Device 5 | 2 1 2 Storage . | . . . Processor . | . . . Hackware . | . . . Protection . | . . . Artifact . | . . . Weapon 4 | 2 1 1 Energy Gun 2 | 1 . 1 Energy Cannon . | . . . Ballistic Gun 1 | 1 . . Ballistic Cannon . | . . . Launcher . | . . . Special Weapon 1 | . 1 . Impact Weapon . | . . . Slashing Weapon . | . . . Piercing Weapon . | . . . Special Melee Weapon . | . . . Unidentified Prototypes . | . . . Parts Lost . | . . . Power . | . . . Propulsion . | . . . Utility . | . . . Weapon . | . . . Highest Loss Streak . | . . . To Critical Strikes . | . . . Average Slot Usage (%) 48 | . 42 50 Engine 6 | . . 8 Device 27 | . 28 27 Energy Gun 11 | . 12 11 Special Weapon 2 | . 2 2 Peak Build Rating 10 | 6 5 10 Average Rating 5 | 2 5 7 On Entrance 3 | . 5 5 Naked Turns . | . . . Heaviest Build 7 | 5 3 7 Greatest Support 12 | 3 3 12 Greatest Overweight (x) 1 | 1 . . Average Overweight (x) . | . . . Largest Inventory Capacity 5 | 5 5 5 Average Capacity 5 | 5 5 5 Most Carried 5 | 2 5 5 Average Carried 3 | . 3 4 Final Capacity 5 | 5 5 5 Final Carried 5 | 2 5 5 Class Distribution -------------------- 100% | Mutant Dominant Class ---------------- Mutant | -10/Materials Mutant | -10/Mines Resources | -11 -10 -10 ----------- Run | Yrd Mat Min Matter Collected 306 | 176 85 45 Remotely . | . . . Salvage Created 86 | 86 . . Parts 9 | 9 . . Haulers Intercepted . | . . . Recyclers Shooed 1 | 1 . . Parts Field Recycled . | . . . Retrieved Matter . | . . . Parts Self-Destructed . | . . . Prevented . | . . . Kills | -11 -10 -10 ------- Run | Yrd Mat Min Combat Hostiles Destroyed . | . . . Classes Destroyed 2 | 2 . . Tunneler 1 | 1 . . Recycler 1 | 1 . . Best Kill Streak 2 | 2 . . Combat Bots Only . | . . . Max Kills in Single Turn 1 | 1 . . Gunslinging . | . . . Exploded . | . . . Melee . | . . . Uniques/NPCs Destroyed . | . . . Combat | -11 -10 -10 -------- Run | Yrd Mat Min Hostile Shots Fired 59 | . 24 35 Missed 27 | . 14 13 Damage Taken 324 | . 88 236 Core 250 | . 62 188 Absorbed by Shields . | . . . Core Remaining (%) 100 | 100 . . Volleys Fired 8 | 7 1 . Largest 2 | 2 1 . Hottest 100 | 60 100 . Shots Fired 15 | 14 1 . Gun 14 | 14 . . Cannon . | . . . Launcher . | . . . Special 1 | . 1 . Kinetic 7 | 7 . . Thermal 8 | 7 1 . Explosive . | . . . Electromagnetic . | . . . Robot Hit Streak 8 | 8 . . Robot Miss Streak 1 | 1 . . Penetration Max . | . . . Secondary Targets . | . . . Shots Hit Robots 11 | 11 . . Core Hits 3 | 3 . . Critical Kills . | . . . Critical Parts Destroyed . | . . . Critical Strikes . | . . . Melee Attacks . | . . . Impact . | . . . Slashing . | . . . Piercing . | . . . Sneak Attacks . | . . . Combat Hostiles . | . . . Follow-up Attacks . | . . . Damage Inflicted 125 | 125 . . Guns 125 | 125 . . Cannons . | . . . Explosions . | . . . Melee . | . . . Ramming . | . . . Kinetic 59 | 59 . . Thermal 66 | 66 . . Explosive . | . . . Electromagnetic . | . . . Impact . | . . . Slashing . | . . . Piercing . | . . . Highest Corruption . | . . . Average Corruption . | . . . Corruption Purged . | . . . Corruption Blocked . | . . . Overload Shots . | . . . Overflow Damage . | . . . Projectiles . | . . . Explosions . | . . . Melee . | . . . Knockbacks . | . . . Impact . | . . . Kinetic . | . . . Secondary . | . . . Self-Inflicted Damage . | . . . Shots . | . . . Rammed . | . . . Targets Rammed . | . . . Kicked . | . . . Crushed . | . . . Highest Temperature 15 | 15 . . Average Temperature 10 | 10 . . Received Heat Transfer 15 | . 15 . Siege Activations . | . . . Robots Corrupted . | . . . Combat Hostiles . | . . . Parts Fried . | . . . Impact Corruptions . | . . . Robots Melted . | . . . Combat Hostiles . | . . . Parts Melted . | . . . Heat Transferred 150 | 150 . . Parts Sabotaged . | . . . Parts Stolen . | . . . Parts Stripped . | . . . Power Chain Reactions . | . . . Alert | -11 -10 -10 ------- Run | Yrd Mat Min Peak Influence 28 | 10 10 28 Initial 6 | . 6 3 Average 7 | 5 6 8 Maximum Alert Level . | . . . Low Security (%) 100 | 100 100 100 Level 1 . | . . . Level 2 . | . . . Level 3 . | . . . Level 4 . | . . . Level 5 . | . . . High Security . | . . . Max Security . | . . . Squads Dispatched . | . . . Investigation . | . . . Extermination . | . . . Reinforcement . | . . . Assault . | . . . Garrison . | . . . Intercept . | . . . Searches Triggered . | . . . Construction Impeded . | . . . Haulers Reinforced . | . . . Active Scanning Responses . | . . . Cargo Convoy Interrupts . | . . . Stealth | -11 -10 -10 --------- Run | Yrd Mat Min Distress Signals . | . . . Communications Jammed . | . . . Distress Signals . | . . . Times Spotted 15 | . 6 9 Peak Tracking Total 6 | . 6 3 Tactical Retreats 2 | . . 2 Traps | -11 -10 -10 ------- Run | Yrd Mat Min Traps Triggered . | . . . Indirectly . | . . . Trap Hack Attempts . | . . . Triggered . | . . . Disarmed . | . . . Reprogrammed . | . . . Reused . | . . . Traps Extracted . | . . . Installed . | . . . Triggered 1 | . . 1 Machines | -11 -10 -10 ---------- Run | Yrd Mat Min Machines Disabled . | . . . Max in Single Turn . | . . . Machines Repaired . | . . . Machines Dismantled . | . . . Machines Sabotaged . | . . . Overloaded Fab Kills . | . . . Hacking | -11 -10 -10 --------- Run | Yrd Mat Min Machines Accessed 5 | . 4 1 Terminals 4 | . 4 . Fabricators . | . . . Repair Stations . | . . . Recycling Units . | . . . Scanalyzers . | . . . Garrison Access . | . . . Total Hacks 12 | . 11 1 Successful 7 | . 6 1 Failed 5 | . 5 . Catastrophic 1 | . 1 . Database Lockouts . | . . . Manual 9 | . 9 . Terminals 11 | . 11 . Fabricators . | . . . Repair Stations . | . . . Recycling Units . | . . . Scanalyzers . | . . . Garrison Access . | . . . Terminal Hacks 2 | . 1 1 Open Door 1 | . . 1 Zone Layout 1 | . 1 . Fabricator Hacks . | . . . Repair Station Hacks . | . . . Recycling Unit Hacks . | . . . Scanalyzer . | . . . Garrison Access Hacks . | . . . Unauthorized Hacks 5 | . 5 . Terminals 5 | . 5 . Botnet 3 | . 3 . Skim 2 | . 2 . Fabricators . | . . . Repair Stations . | . . . Recycling Units . | . . . Scanalyzers . | . . . Garrison Access . | . . . Data Cores Recovered . | . . . Used . | . . . Hacking Detections 4 | . 4 . Full Trace Events . | . . . Feedback Events . | . . . Feedback Blocked . | . . . Robot Schematics Acquired . | . . . Robots Built . | . . . Authchips . | . . . Time . | . . . Total Robot Build Rating . | . . . Part Schematics Acquired . | . . . Parts Built . | . . . Authchips . | . . . Time . | . . . Total Part Build Rating . | . . . Parts Repaired . | . . . Time . | . . . Parts Recycled . | . . . Recycled Matter . | . . . Retrieved Matter . | . . . Retrieved Components . | . . . Parts Scanalyzed . | . . . Part Schematics Acquired . | . . . Parts Damaged . | . . . Bothacking | -11 -10 -10 ------------ Run | Yrd Mat Min Used RIF Installer . | . . . Robots Hacked . | . . . Non-combat . | . . . Combat . | . . . Robot Hacks Applied . | . . . Relay Couplers Released . | . . . Fabnet Peak Effective % . | . . . Robots Rewired . | . . . Allies Hacked . | . . . Hacks Repelled . | . . . Allies | -11 -10 -10 -------- Run | Yrd Mat Min Total Allies . | . . . Largest Group . | . . . Highest-Rated Group . | . . . Highest-Rated Ally . | . . . Total Orders . | . . . Ally Attacks . | . . . Total Damage . | . . . Kills . | . . . Allies Corrupted . | . . . Allies Melted . | . . . Intel | -11 -10 -10 ------- Run | Yrd Mat Min Robot Analysis Total . | . . . Derelict Logs Recovered . | . . . Drone Launches . | . . . Drone Recoveries . | . . . Exploration | -11 -10 -10 ------------- Run | Yrd Mat Min Turns Passed 295 | 46 72 177 Spaces Moved 473 | 33 124 316 Core 473 | 33 124 316 Treads . | . . . Legs . | . . . Wheels . | . . . Hover . | . . . Flight . | . . . Fastest Speed 50 | 50 50 50 Average Speed 50 | 54 50 50 Slowest Speed 100 | 100 50 50 Overloaded Moves . | . . . Propulsion Burnouts . | . . . Robots Hopped . | . . . Cave-ins Triggered . | . . . Exploration Rate (%) 40 | 3 42 75 Regions Visited 2 Branch Regions 1 Pre-discovered Areas . | . . . Known Exits Taken . | . . . Unknown Exits Taken 2 | 1 1 . Scrap Searched 1 | . . 1 Spaces Dug 1 | . 1 . Terrain Destroyed 1 | . 1 . Melee . | . . . Projectile 1 | . 1 . AOE . | . . . Terrain Rammed . | . . . Walls Destroyed . | . . . Machines Disabled . | . . . Actions | -11 -10 -10 --------- Run | Yrd Mat Min Total 509 | 45 130 334 Wait 10 | . . 10 Move 471 | 32 123 316 Hop . | . . . Pick Up 6 | 1 3 2 Fast Attach 5 | 4 . 1 Attach 1 | . . 1 Detach 1 | 1 . . Swap 4 | . 2 2 Drop 3 | . 1 2 Fire 8 | 7 1 . Melee . | . . . Ram . | . . . Kick . | . . . Crush . | . . . Escape Stasis . | . . . Rewire . | . . . Trap . | . . . Miscellaneous . | . . . Route ------- -11/Scrapyard -10/Materials -10/Mines (discovered 1 exit: [*Mat]) History --------- Turn | Location | Event 8 | -11/Scrapyard | Discovered new exit (range 12) 47 | -11/Scrapyard | Entered Materials 115 | -10/Materials | Discovered new exit (range 8) 119 | -10/Materials | Entered Mines 158 | -10/Mines | Assembled infested the area 163 | -10/Mines | Assisted by a Guerilla fighting off Assembled 172 | -10/Mines | Met a Derelict who couldn't figure out how to use a Trap Extractor 234 | -10/Mines | Core integrity fell below 50% 234 | -10/Mines | Discovered new exit (range 10) 284 | -10/Mines | Core integrity fell below 20% 296 | -10/Mines | Destroyed by S-10 Pest with Light Assault Rifle Last Messages --------------- trapped this place to begin with?!" 00172_ WU-UB9(g): "I give up! Here you try, I'm outta here before something nasty happens..." 00172_ Tosses Imp. Trap Extractor to the ground. 00175_ Dropped Assault Rifle. 00175_ Acquired Adv. Weight Redist. System. 00179_ Dropped Seismic Detector. 00180_ Acquired Lgt. Deuterium Engine. 00189_ Acquired Seismic Detector. 00219_ A derelict is hurriedly installing traps. 00221_ V0-JE2(g): "Hehe, this'll put a wrench in their mining defense operations..." 00221_ V0-JE2(g) slips into the shadows. 00221_ S-10 Pest destroyed. 00227_ Acquired 20 matter. 00231_ The unstable cave ceiling collapses. 00234_ EXIT=FOUND 00237_ K-01 Serf collects debris. 00257_ Acquired 5 matter. 00264_ K-01 Serf collects debris. Map ----- +----------------------------------------------------+ | | | | | | | | | ????????????????????????????????????????? | | ????????????????????????????????????????? | | ????????????????????????????????????????? | | ????????????????????????????????????????? | | ????????????????????????????????????????? | | ????????????????????????????????????????? | | ???????????????????????###??????????????? | | ???????????????????????# ##?????????????? | | ???????????????????????# #?????????????? | | ???????????????????????# #???????????### | | ???????????????????????# ##?????????## | | ???????????????????????# ##????????# | | ???????????????????????# ##??????## | | ???????????????????????# ##?????# | | ???????????????????????# ##????# | | ??????????????????????## #????## | | ??????????????????????# ##?#### | | ?????????????????????## ### | | ??????????????####???# | | ?????????????## ##?## | | ?????????????# ### | | ?????????????# @ s | | ?????????????## ## | | ??????????????# ####### ### | | ??????????????# ## ##?????## ##?# | | ?????????????# #####???????# ##??# | | ?????????????# ###???????????## ##### | | ?????????????# ???????????????## ### | | ????????????? ????????????????##### | | ???????????? ???????????????????## | | ??????????? ?????????????######## | | ?????????? ????????????# | | ?????????# ????????????# | | ?????????#?##?????????????? ### | | ???????????????????????????????# | | ???????????????????????????????# | | ???????????????????????????????## % | | ????????????????????????????????## ### | | ?????????????????????????????????### ??## | | ???????????????????????????????????#????# | | ????????????????????????????????????????# | | ????????????????????????????????????????# | | ??????????????????????????????#?????????? | | ????????????????????????????????????? ??? | | ??????????????????????????#?????????????? | | ?????????????????????????????#?? ???????? | +----------------------------------------------------+ Best States ------------- Heat Dissipation 25 Energy Generation 14 Energy Capacity 140 Matter Stores 300 Matter Capacity 300 Sight Range 16 Terrain Scan Range 16 Terrain Scan Density 10 Additional Mass Support 9 Evasion (%) 50 Item Schematics ----------------- None Robot Schematics ------------------ None Fabricated ------------ Nothing Alien Tech Used ----------------- None Achievements -------------- None Challenges ------------ None Game ------ Seed SiegeSlugBay Manual? 0 Play Time 00:08:39 Cumulative 80.9 hours Start 2024.11.10 @ 13:23:34 End 2024.11.10 @ 13:29:11 Sessions 1 Manual Loads 0 Difficulty Rogue Special Mode None Game No. 77 Rogue 77 Adventurer 0 Explorer 0 Win Type - Total 2 Types 2/0/0/0/0/0/0/0/0 Lore% 44 Gallery% 47 Achievement% 41 Wizard Run 0 Options --------- Layout 1 ASCII 0 Keyboard 1 Movement Arrows Keybinds 0 Fullscreen 2 Font 24/Smallcaps Map View 50x35 Zoom Use 0% Tactical HUD 1 Map Filters NONE Filters NONE Steam 1 RUN: 8d749cdc-7a10-4032-b1ac-4ffa7a8b859e